[Event "44th Chess Olympiad Open 2022"]
[Site "Chennai"]
[Date "2022.07.30"]
[Round "2.23"]
[White "Indjic, Aleksandar"]
[Black "Tologontegin, Semetey"]
[Result "1-0"]
[WhiteElo "2620"]
[BlackElo "2378"]
[Annotator "TA"]
[PlyCount "111"]
[EventDate "2022.??.??"]
[TimeControl "60"]

{[%evp 10,111,6,10,30,23,33,18,20,31,35,19,45,41,58,39,139,126,138,105,168,161,
177,177,164,169,170,168,151,141,155,149,234,238,229,231,215,230,359,359,370,
356,353,275,569,577,412,220,225,200,349,339,308,246,308,308,408,346,346,308,
308,171,171,171,171,171,171,89,171,171,171,171,182,182,469,450,439,416,590,575,
545,556,1331,1322,1687,1533,2231,1902,1999,2230,3000,1253,3269,2766,5616,12806,
5193,2485,29989,29990,29992,29993,29993,29994]} 1. d4 {[%emt 0:00:50]} Nf6 {
[%emt 0:00:11]} 2. c4 {[%emt 0:00:55]} e6 {[%emt 0:00:09]} 3. Nf3 {[%emt 0:00:
00]} Bb4+ {[%emt 0:00:55]} 4. Nbd2 {[%emt 0:00:21]} O-O {[%emt 0:01:03]} 5. a3
{[%emt 0:01:02]} Be7 {[%emt 0:00:43]} 6. e4 {[%emt 0:00:07]} d6 {[%emt 0:00:04]
[%cal Ye6e5] E11: Bogo-Indian.} 7. Be2 {[%emt 0:00:16]} Nfd7 {[%emt 0:00:48]}
8. b4 {[%emt 0:04:09]} e5 {[%emt 0:01:45] The position is equal.} 9. d5 {
[%emt 0:00:44]} a5 {[%emt 0:14:03]} 10. Bb2 {[%emt 0:00:10]} c5 {[%emt 0:01:03]
} 11. b5 {[%emt 0:00:35]} Nb6 {[%emt 0:06:05]} 12. Qc2 {[%emt 0:01:03] [#]} Bg5
$146 {[%emt 0:09:31]} (12... f5 $14) ({Predecessor:} 12... f5 13. O-O-O f4 14.
g3 N8d7 15. Rdg1 Rf7 16. h4 fxg3 17. Rxg3 Nf8 18. h5 Bf6 {1-0 (52) Gledura,B 
(2620)-Quesada Perez,Y (2598) Chesterfield 2020}) 13. Nxg5 $16 {[%emt 0:12:51]}
Qxg5 {[%emt 0:00:21]} 14. g4 {[%emt 0:00:13]} N8d7 {[%emt 0:14:43]} (14... Bxg4
$2 15. Rg1 $18) (14... Qh4 $16) 15. h4 $1 $36 {[%emt 0:00:59] Keeping Black
busy.} Qe7 {[%emt 0:00:06]} 16. Nf1 {[%emt 0:00:30][%cal Yd2f1,Yf1g3,Yg3h5]}
Re8 {[%emt 0:01:32]} 17. Ng3 {[%emt 0:02:38]} Nf8 {[%emt 0:00:32]} 18. Nh5 {
[%emt 0:15:53]} Ng6 {[%emt 0:13:40]} 19. g5 {[%emt 0:00:00]} Nd7 {[%emt 0:02:
25]} 20. O-O-O $1 {[%emt 0:14:40] White is much more active. The black rooks
are badly placed.} f6 {[%emt 0:14:15]} (20... Rf8 $16 {was worth a try.}) 21.
Rdg1 {[%emt 0:00:00]} fxg5 {[%emt 0:00:16]} 22. hxg5 {[%emt 0:00:00][%cal
Yf2f4]} (22. Rxg5 $6 Rf8 $16) 22... Rf8 {[%emt 0:04:22]} 23. Bg4 {[%emt 0:00:
00]} Nf4 {[%emt 0:20:22] Prevents Be6+.} (23... Nb6 {was necessary.}) 24. Bf5 {
[%emt 0:03:39]} (24. Nxf4 Rxf4 25. Be6+ Kh8 $16) 24... Nxh5 {[%emt 0:00:00]}
25. Rxh5 {[%emt 0:00:10][%cal Yh1h5,Yh5h4,Yh4h6]} g6 {[%emt 0:00:00]} 26. Be6+
{[%emt 0:00:22]} Kh8 $2 {[%emt 0:00:00]} (26... Kg7) 27. Rh4 {[%emt 0:00:08]}
Nb6 {[%emt 0:00:00]} 28. Bxc8 {[%emt 0:00:00]} (28. Rgh1 $142) 28... Raxc8 {
[%emt 0:00:00]} 29. f4 $1 {[%emt 0:00:11] And now f5 would win.} Nd7 {[%emt 0:
00:00]} (29... h5 {might work better.} 30. f5 Qf7) 30. f5 {[%emt 0:00:24]
Hoping for fxg6.} Rg8 {[%emt 0:00:00]} 31. Qd2 {[%emt 0:10:03]} b6 {[%emt 0:00:
00]} 32. Rh6 {[%emt 0:01:47]} Nf8 {[%emt 0:00:00]} 33. Qh2 {[%emt 0:01:51]} Qc7
{[%emt 0:00:00]} 34. Rf1 {[%emt 0:01:40]} Rg7 {[%emt 0:00:00]} 35. fxg6 {
[%emt 0:01:42]} (35. f6 $142 Rd7 36. Rh1) 35... Nxg6 {[%emt 0:00:00]} 36. Rf6 {
[%emt 0:00:08]} Kg8 {[%emt 0:00:00]} 37. Qh3 $1 {[%emt 0:00:09] Threatens to
win with Qe6+.} Re8 {[%emt 0:00:00] [#] Prevents Qe6+.} 38. Kc2 {[%emt 0:02:00]
} ({White should play} 38. Kb1 $1 $18) 38... Ree7 {[%emt 0:00:00]} (38... Qe7
$16 {keeps fighting.}) 39. Bc3 {[%emt 0:02:00]} Qd7 {[%emt 0:00:03]} 40. Qf5 {
[%emt 0:00:49]} Ref7 {[%emt 0:00:48]} 41. Kb3 {[%emt 0:03:31]} ({Avoid the trap
} 41. Rxd6 $2 Rxf5 42. Rxd7 Rf2+ 43. Bd2 Rxd7 $19) 41... Rxf6 $2 {[%emt 0:11:
02]} (41... Re7 42. Bd2 (42. Rxd6 $2 Qxd6 43. Qc8+ Kf7 $19) 42... Ref7) 42.
gxf6 {[%emt 0:00:00]} ({Inferior is} 42. Qxf6 Rf7 43. Qe6 Qxe6 44. dxe6 Ra7 $15
) 42... Rf7 {[%emt 0:00:04]} 43. Qxd7 {[%emt 0:00:00]} Rxd7 {[%emt 0:00:12] [#]
} (43... a4+ $142 44. Kxa4 Rxd7) 44. Bxa5 $1 {[%emt 0:00:00]} bxa5 {[%emt 0:06:
25] Endgame KRN-KR} 45. Ka4 {[%emt 0:00:00]} Kf8 {[%emt 0:06:18]} 46. b6 {
[%emt 0:00:00]} Ke8 {[%emt 0:00:00]} 47. Kxa5 {[%emt 0:00:00]} Kd8 {[%emt 0:02:
39]} 48. Kb5 {[%emt 0:00:00]} Kc8 {[%emt 0:01:36]} 49. a4 {[%emt 0:00:11][%cal
Ya3a4,Ya4a5,Ya5a6] aiming for a5.} Rf7 {[%emt 0:03:14]} 50. Kc6 {[%emt 0:00:27]
a5 is the strong threat.} Nf8 {[%emt 0:01:28]} 51. a5 {[%emt 0:01:12]} Nd7 {
[%emt 0:00:26]} 52. a6 {[%emt 0:00:27]} Kb8 {[%emt 0:00:29]} 53. Kxd6 {[%emt 0:
03:59] Threatening mate with Ke6.} Nxf6 {[%emt 0:00:25]} 54. Ke6 {[%emt 0:00:
28] White mates.} Ng4 {[%emt 0:00:08]} 55. Kxf7 {[%emt 0:00:38]} Nxh6+ {
[%emt 0:00:03]} 56. Ke6 {[%emt 0:00:10] Weighted Error Value: White=0.17 (very
precise) /Black=0.57} 1-0

[Event "44th Chess Olympiad Open 2022"]
[Site "Chennai"]
[Date "2022.07.30"]
[Round "2.23"]
[White "Markus, Robert"]
[Black "Abdyjapar, Asyl"]
[Result "1-0"]
[WhiteElo "2616"]
[BlackElo "2306"]
[Annotator "TA"]
[PlyCount "112"]
[EventDate "2022.??.??"]
[TimeControl "60"]

{[%evp 25,112,24,52,35,68,52,60,46,103,39,58,82,72,54,68,66,68,63,73,49,137,
146,135,131,179,151,142,154,138,89,90,85,87,73,145,0,103,-49,0,0,0,0,0,0,0,0,0,
0,49,13,168,165,254,250,248,234,369,370,377,377,370,378,354,364,593,528,644,
645,636,616,615,589,623,651,783,714,1192,1182,1060,1027,12836,12837,12836,
12836,12834,6843,12839,1386,1246]} 1. d4 {[%emt 0:00:04]} Nf6 {[%emt 0:00:04]}
2. c4 {[%emt 0:00:09]} e6 {[%emt 0:00:04]} 3. Nf3 {[%emt 0:00:35]} c5 {[%emt 0:
00:00]} 4. d5 {[%emt 0:02:18]} d6 {[%emt 0:00:04]} 5. Nc3 {[%emt 0:00:09]} exd5
{[%emt 0:00:04]} 6. cxd5 {[%emt 0:00:06]} g6 {[%emt 0:00:29]} 7. e4 {[%emt 0:
00:00]} Bg7 {[%emt 0:00:04]} 8. Be2 {[%emt 0:00:05]} O-O {[%emt 0:00:05]} 9.
O-O {[%emt 0:01:25]} Re8 {[%emt 0:00:22]} 10. Nd2 {[%emt 0:00:07][%cal Yf3d2,
Yd2f1,Yf1g3,Yg3f5,Yf5d6]} a6 {[%emt 0:00:07]} 11. a4 {[%emt 0:00:05]} Nbd7 {
[%emt 0:00:04]} 12. Qc2 {[%emt 0:02:28]} Ne5 {[%emt 0:00:17]} 13. Ra3 {[%emt 0:
04:46]} g5 {[%emt 0:02:02]} 14. Re1 {[%emt 0:04:35] A77: Modern Benoni:
Classical: 9...Re8 10 Nd2:10...a6 and 10...Nbd7.} Bd7 {[%emt 0:09:21]} 15. Nf1
{[%emt 0:03:32]} g4 {[%emt 0:02:10]} 16. Ng3 {[%emt 0:00:19] [#] White is
slightly better.} Rb8 $146 {[%emt 0:01:45]} (16... Ng6 $14) ({Predecessor:} 
16... Ng6 17. Bd2 Re5 18. Nd1 b5 19. axb5 axb5 20. Rxa8 Qxa8 21. Ne3 Re8 22. b4
Qc8 {½-½ (45) Dragun,K (2586)-Donchenko,A (2567) Biel 2015}) 17. a5 {[%emt 0:
00:00]} (17. Nd1 $16) 17... Ng6 $1 $14 {[%emt 0:07:03]} 18. Nd1 {[%emt 0:19:19]
} h5 {[%emt 0:02:07]} 19. Ne3 $1 {[%emt 0:03:32]} h4 {[%emt 0:07:29]} 20. Ngf5
{[%emt 0:00:05]} Rxe4 {[%emt 0:09:27]} 21. Nxd6 {[%emt 0:01:23]} Re5 {[%emt 0:
00:00]} 22. Ndc4 {[%emt 0:05:32] White is more active.} (22. Qxc5 $2 Bf8 23.
Bd3 Be8 $19) 22... Rg5 {[%emt 0:01:19]} (22... Re8 $14) 23. Nb6 $16 {[%emt 0:
00:00]} Nf4 {[%emt 0:15:35]} 24. Bf1 $1 {[%emt 0:08:13]} g3 {[%emt 0:08:38]} (
24... Ng6 $16 {keeps fighting.}) 25. fxg3 {[%emt 0:04:28]} hxg3 {[%emt 0:00:00]
} 26. hxg3 {[%emt 0:05:42]} N4h5 {[%emt 0:00:00]} (26... Rxg3 $2 27. Nxd7 Qxd7
28. Nf5 Rxa3 29. Bxf4 $18) 27. Nec4 {[%emt 0:10:18]} (27. Qxc5 $6 Ne4 28. Qc2
Nexg3 $14) ({White should play} 27. Nxd7 Qxd7 28. Nc4 (28. Qxc5 Re8 $17) 28...
Rxd5 29. Nb6) 27... Ng4 {[%emt 0:00:17]} 28. Rd1 {[%emt 0:00:00]} (28. Bxg5
Qxg5 29. Re4 (29. Nxd7 $2 Bd4+ 30. Ne3 Nxg3 $19) 29... Nhf6 $19) 28... Bf5 {
[%emt 0:03:48]} 29. Qe2 {[%emt 0:08:27]} (29. Bxg5 Qxg5 30. Qc1 Bd4+ 31. Ne3 (
31. Kh1 $2 Nf4 $19) 31... Nxe3 32. Rxd4 cxd4 $19) 29... Qf6 {[%emt 0:08:11]} (
29... Bd4+ $142 30. Rxd4 cxd4) 30. Qf3 {[%emt 0:00:00]} (30. Bxg5 $2 Qxg5 31.
Qf3 Be4 $19) (30. d6 $1 $16 Be6 31. d7 (31. Bxg5 Qxg5 32. d7 Rd8 $11)) 30...
Qg6 {[%emt 0:02:38]} (30... Rg6 $11) 31. d6 $2 {[%emt 0:00:00] [#]} (31. Bxg5
$16 Qxg5 32. Nd6) 31... Nhf6 $1 {[%emt 0:02:33]} 32. Bxg5 $11 {[%emt 0:00:00]}
Qxg5 {[%emt 0:00:06]} 33. Bd3 {[%emt 0:00:00]} Be6 {[%emt 0:02:06] aiming for .
..Qh5. This bishop pair is nice.} 34. Bc2 {[%emt 0:00:21]} Qh5 {[%emt 0:03:03]
Threatens to win with ...Bh6.} 35. Re3 {[%emt 0:00:05]} Rd8 {[%emt 0:02:08]}
36. d7 {[%emt 0:02:48]} Qh2+ {[%emt 0:02:22]} 37. Kf1 {[%emt 0:00:00][%cal
Ye3e6] next Rxe6! is good for White.} Nxe3+ $2 {[%emt 0:00:21] A mistake that
costs the game.} (37... Qh6 $11 {and Black is okay.} 38. Kg1 Qh2+ 39. Kf1 Qh6)
38. Nxe3 $18 {[%emt 0:00:00]} Qh1+ {[%emt 0:01:32]} (38... Nh5 $142) 39. Kf2 {
[%emt 0:00:00]} Qh6 {[%emt 0:00:20] [#]} 40. Bf5 {[%emt 0:03:06]} ({And not} 
40. Qxb7 Ng4+ 41. Nxg4 Bxg4 $11) (40. Nf5 Qg5 $11) 40... Qg5 {[%emt 0:00:40]} (
40... Qh5 $142 41. Rd6 Qg5 42. Bxe6 fxe6) 41. Qf4 {[%emt 0:30:03]} Bh6 {
[%emt 0:30:39][%cal Yg5f5] Strongly threatening ...Qxf5!} 42. Bxe6 {[%emt 0:00:
00] The board is on fire.} fxe6 {[%emt 0:12:44]} 43. Qxg5+ {[%emt 0:00:00]}
Bxg5 {[%emt 0:00:00]} 44. Nec4 {[%emt 0:00:00]} Nd5 $2 {[%emt 0:00:00]} (44...
Rf8 45. Ke2 Ne4) 45. Nxd5 {[%emt 0:00:00] White is clearly winning.} exd5 {
[%emt 0:00:00]} 46. Rxd5 {[%emt 0:00:00] Endgame KRB-KRN} Be7 {[%emt 0:00:00]}
47. Ke3 {[%emt 0:00:00]} Kf7 {[%emt 0:00:11]} 48. Ke4 {[%emt 0:00:00]} Ke6 {
[%emt 0:00:00]} 49. g4 {[%emt 0:00:00]} Rg8 {[%emt 0:00:00]} 50. g5 {[%emt 0:
00:00]} Bd8 {[%emt 0:00:00]} 51. Rd6+ {[%emt 0:00:00]} Ke7 {[%emt 0:00:00]} 52.
Kf5 {[%emt 0:00:00]} Rf8+ {[%emt 0:00:00]} 53. Rf6 {[%emt 0:00:00]} Rg8 {
[%emt 0:00:00]} 54. g6 {[%emt 0:00:00][%csl Gg6][%cal Rf6f7]} Kxd7 {[%emt 0:00:
00]} 55. Rf7+ {[%emt 0:00:00]} Kc6 {[%emt 0:00:07]} 56. g7 {[%emt 0:00:00]} (
56. Ne5+ $142 Kb5 57. Rxb7+ Ka4 58. Nc4) 56... Kd5 {[%emt 0:00:34] Weighted
Error Value: White=0.14 (very precise) /Black=0.37} 1-0

[Event "44th Chess Olympiad Open 2022"]
[Site "Chennai"]
[Date "2022.07.30"]
[Round "2.23"]
[White "Rodshtein, Maxim"]
[Black "Mhango, Banele"]
[Result "1-0"]
[WhiteElo "2596"]
[BlackElo "2238"]
[Annotator "RC"]
[PlyCount "61"]
[EventDate "2022.??.??"]
[TimeControl "60"]

1. d4 {[%emt 0:00:05]} d5 {[%emt 0:00:08]} 2. c4 {[%emt 0:00:15]} e6 {[%emt 0:
00:00]} 3. Nc3 {[%emt 0:00:37]} a6 {[%emt 0:00:43]} 4. cxd5 {[%emt 0:01:06]}
exd5 {[%emt 0:00:05]} 5. Bf4 {[%emt 0:01:54]} Nf6 {[%emt 0:01:28]} 6. e3 {
[%emt 0:02:04]} c5 {[%emt 0:00:14]} 7. Bd3 {[%emt 0:07:51]} cxd4 {[%emt 0:00:
00]} 8. exd4 {[%emt 0:00:05]} Nc6 {[%emt 0:00:05]} 9. Nge2 {[%emt 0:00:32]} Bd6
{[%emt 0:03:41]} 10. Bg5 {[%emt 0:04:28]} O-O {[%emt 0:07:20]} 11. Qd2 {
[%emt 0:07:57]} Be6 {[%emt 0:02:55]} 12. O-O {[%emt 0:19:36]} Re8 {[%emt 0:00:
00]} 13. h3 {[%emt 0:07:20]} h6 {[%emt 0:01:10]} 14. Bh4 {[%emt 0:00:30]} Be7 {
[%emt 0:06:42]} 15. Rad1 {[%emt 0:03:12]} Rc8 {[%emt 0:11:20]} 16. Rfe1 {
[%emt 0:02:31]} Nh5 {[%emt 0:01:55]} 17. Bxe7 {[%emt 0:00:54]} Qxe7 {[%emt 0:
00:00]} 18. Bb1 {[%emt 0:05:55]} Qh4 {[%emt 0:03:26]} 19. Qd3 {[%emt 0:06:31]}
Nf6 {[%emt 0:02:51]} 20. g3 {[%emt 0:07:40]} Qg5 {[%emt 0:04:11]} 21. Nf4 {
[%emt 0:01:26]} Nb4 {[%emt 0:00:47]} 22. Qf3 {[%emt 0:04:20]} Bf5 {[%emt 0:00:
00]} 23. Nfxd5 {[%emt 0:02:23]} Nbxd5 {[%emt 0:03:18]} 24. Bxf5 {[%emt 0:02:26]
} Nxc3 {[%emt 0:00:49]} 25. bxc3 {[%emt 0:02:44]} Rxe1+ {[%emt 0:00:30]} 26.
Rxe1 {[%emt 0:00:06]} Rxc3 {[%emt 0:02:08]} 27. Qxc3 {[%emt 0:00:34]} Qxf5 {
[%emt 0:00:04]} 28. g4 {[%emt 0:01:51]} Qd5 {[%emt 0:00:56]} 29. Qc8+ {[%emt 0:
00:00]} Kh7 {[%emt 0:00:26]} 30. Qf5+ {[%emt 0:00:19]} Qxf5 {[%emt 0:00:22]}
31. gxf5 {[%emt 0:00:06]} 1-0

[Event "44th Chess Olympiad Open 2022"]
[Site "Chennai"]
[Date "2022.07.30"]
[Round "2.23"]
[White "Markov, Mikhail"]
[Black "Ivic, Velimir"]
[Result "1/2-1/2"]
[WhiteElo "2333"]
[BlackElo "2581"]
[Annotator "TA"]
[PlyCount "81"]
[EventDate "2022.??.??"]
[TimeControl "60"]

{[%evp 9,81,12,8,10,25,22,24,0,0,0,-5,-7,0,-5,-10,-11,14,-27,-15,-83,-49,-96,
18,0,17,12,11,-47,24,0,23,9,25,15,69,37,20,0,55,0,0,0,161,122,113,95,104,104,
74,0,0,0,0,0,0,0,0,0,0,0,0,0,0,0,0,0,0,0,0,0,0,0,0,0]} 1. d4 {[%emt 0:00:13]}
Nf6 {[%emt 0:01:21]} 2. Nf3 {[%emt 0:01:24]} d5 {[%emt 0:01:36]} 3. c4 {
[%emt 0:03:26]} e6 {[%emt 0:04:33]} 4. Qc2 {[%emt 0:08:00]} c5 {[%emt 0:05:17]}
5. dxc5 {[%emt 0:13:04]} Bxc5 {[%emt 0:04:02]} 6. cxd5 {[%emt 0:01:46] D30:
Queen's Gambit Declined: Systems without Nc3.} Qb6 {[%emt 0:08:55]} 7. e3 $1 {
[%emt 0:00:00]} exd5 {[%emt 0:02:38]} 8. a3 {[%emt 0:00:00] Strongly
threatening b4. White has an edge.} O-O {[%emt 0:02:21]} 9. b4 {[%emt 0:02:39]}
Be7 {[%emt 0:01:12]} 10. Bb2 {[%emt 0:01:00]} a5 {[%emt 0:03:56]} 11. b5 {
[%emt 0:10:31]} Bg4 {[%emt 0:03:15] [#]} 12. Bd4 $146 {[%emt 0:03:36]} ({
Predecessor:} 12. Nbd2 Rc8 13. Qb1 Nbd7 14. Be2 Nc5 15. Bd4 Nfe4 16. Nxe4 dxe4
17. Qxe4 Nxe4 18. Bxb6 {½-½ (61) Arnold,M (2432)-Grandelius,N (2505) Chotowa
2010}) 12... Qd6 {[%emt 0:02:06]} 13. Bd3 {[%emt 0:01:32]} Nbd7 {[%emt 0:05:50]
} 14. Qb2 {[%emt 0:04:18]} (14. Nbd2 $11) 14... Nc5 {[%emt 0:04:30]} 15. Bc2 {
[%emt 0:02:31]} (15. Bxc5 $15 Qxc5 16. Nd4) 15... Nce4 {[%emt 0:06:04]} (15...
Bxf3 $17 16. Be5 Qe6 $1 17. gxf3 Rac8) 16. Nbd2 {[%emt 0:02:17]} Rac8 {[%emt 0:
00:00]} 17. O-O {[%emt 0:03:49]} Rfe8 {[%emt 0:03:15]} 18. Rfc1 {[%emt 0:08:24]
} (18. b6 $11) 18... Bf8 {[%emt 0:09:10]} (18... Bxf3 $15 19. Nxf3 Ng4) 19. b6
{[%emt 0:03:54]} Bd7 {[%emt 0:09:04]} 20. Nxe4 {[%emt 0:04:20]} Nxe4 {[%emt 0:
00:00]} 21. Ne5 {[%emt 0:00:26]} Be6 {[%emt 0:03:36]} (21... Red8 $11) 22. Qb5
{[%emt 0:03:15]} (22. f3 $5 {[%cal Rf3e4]} Nc5 23. Qb5 $14) 22... Bf5 {[%emt 0:
00:00]} 23. f3 {[%emt 0:04:08]} Rxe5 {[%emt 0:05:18]} (23... Nc3 $1 $11 24.
Bxc3 Rxe5) 24. Bxe4 {[%emt 0:05:19]} (24. Bxe5 Qxe5 25. Bxe4 Bc5 26. Rxc5 Rxc5
27. Qxc5 Qxa1+ 28. Kf2 Qb2+ 29. Kg3 Qe5+ 30. Kf2 Qb2+ 31. Kg3 Qe5+ 32. Kf2 Qb2+
$11) (24. fxe4 $14 Be6 25. Bd1 (25. Qxa5 Rg5 $14) (25. Bxe5 Qxe5 26. Bd3 Bd6
$11)) 24... Rxc1+ $11 {[%emt 0:02:43]} 25. Rxc1 {[%emt 0:00:04]} Bxe4 {[%emt 0:
00:00]} (25... Bd7 $1 $11 26. Bxe5 (26. Qxa5 Rh5 $11) 26... Qxa3 27. Bxh7+ Kh8)
26. fxe4 $18 {[%emt 0:01:14]} ({Much less strong is} 26. Bxe5 Qxe5 27. fxe4
Qxe4 $16) 26... Rxe4 {[%emt 0:00:21]} 27. Rc8 {[%emt 0:00:29] Threatens to win
with Bc5.} Rxd4 {[%emt 0:01:27]} 28. exd4 {[%emt 0:00:10]} Qxa3 $16 {[%emt 0:
00:00] Endgame [#] KQR-KQB} 29. Qc5 {[%emt 0:00:39]} ({White should try} 29. h3
$1 $16 {aiming for Qc5.} Qa1+ 30. Kh2 Qxd4 31. Qxa5 Qf4+ 32. Kg1) 29... Qe3+
$11 {[%emt 0:00:19] The position is equal.} 30. Kf1 {[%emt 0:00:03][%csl Gc5]
[%cal Rc8f8]} Qd3+ {[%emt 0:00:35]} 31. Ke1 {[%emt 0:00:09][%csl Gc5][%cal
Rc8f8]} Qe3+ {[%emt 0:00:34]} 32. Kd1 {[%emt 0:02:37][%csl Gc5][%cal Rc8f8]
The board is on fire.} Qd3+ {[%emt 0:00:12]} 33. Kc1 {[%emt 0:02:57][%csl Gc5]
[%cal Rc8f8]} Qe3+ {[%emt 0:00:17]} 34. Kb2 {[%emt 0:01:20][%csl Gc5][%cal
Rc8f8]} Qd2+ {[%emt 0:00:30]} 35. Ka3 {[%emt 0:02:07][%csl Gc5][%cal Rc8f8]}
Qd3+ {[%emt 0:00:22]} 36. Ka2 {[%emt 0:00:05][%csl Gc5][%cal Rc8f8]} Qd2+ {
[%emt 0:00:53]} 37. Qc2 {[%emt 0:02:21]} Qb4 {[%emt 0:00:23]} 38. Qc5 {[%emt 0:
02:26][%csl Gc5][%cal Rc8f8] Active counter play!} Qd2+ {[%emt 0:00:05]} 39.
Qc2 {[%emt 0:00:02]} Qb4 {[%emt 0:00:07]} 40. Qb3 {[%emt 0:02:00] Qxb4 is the
strong threat.} Qxd4 {[%emt 0:01:43]} 41. Qa3 {[%emt 0:31:51] Weighted Error
Value: White=0.16 (very precise) /Black=0.22 (precise)} 1/2-1/2

[Event "44th Chess Olympiad Open 2022"]
[Site "Chennai"]
[Date "2022.07.30"]
[Round "2.23"]
[White "Zhakshylykov, Erzhan"]
[Black "Ivanisevic, Ivan"]
[Result "0-1"]
[WhiteElo "2332"]
[BlackElo "2561"]
[Annotator "TA"]
[PlyCount "102"]
[EventDate "2022.??.??"]
[TimeControl "60"]

{[%evp 17,102,55,78,19,22,19,30,20,22,20,39,25,34,29,28,14,0,0,17,4,3,-25,-28,
-48,-31,-33,-33,-39,-37,-45,-60,-38,-20,-33,-34,-27,-33,-33,-34,-66,-66,-67,
-18,-18,-20,-89,-62,-98,-40,-41,-40,-45,-33,-47,-52,-210,-210,-129,-118,-481,
-481,-2956,-2914,-1479,-990,-2760,-1804,-29970,-29971,-29972,-29973,-29973,
-29974,-29974,-29976,-29976,-29977,-29977,-29978,-29977,-29976,-29978,-29978,
-29978,-29977,-29987,-29976]} 1. d4 {[%emt 0:00:05]} Nf6 {[%emt 0:00:04]} 2. c4
{[%emt 0:00:11]} c5 {[%emt 0:00:04]} 3. d5 {[%emt 0:00:41]} g6 {[%emt 0:00:07]}
4. Nc3 {[%emt 0:00:14]} Bg7 {[%emt 0:00:04]} 5. e4 {[%emt 0:02:34]} d6 {
[%emt 0:00:06]} 6. h3 {[%emt 0:01:56]} O-O {[%emt 0:00:31]} 7. Nf3 {[%emt 0:00:
00]} e6 {[%emt 0:00:19]} 8. Bd3 {[%emt 0:01:36]} Na6 {[%emt 0:00:15]} 9. O-O {
[%emt 0:19:46]} Nc7 {[%emt 0:01:03] 9...e5 is more advanced technology.} 10.
dxe6 {[%emt 0:07:26] E90: King's Indian: Classical: Early deviations and 6 h3.}
(10. Qb3 $16) 10... Nxe6 $11 {[%emt 0:01:00]} 11. Be3 {[%emt 0:01:06]} a6 $5 {
[%emt 0:16:48] An interesting side line.} 12. Qd2 {[%emt 0:07:07] [#] White
has an edge.} b5 $146 {[%emt 0:04:05]} ({Predecessor:} 12... Re8 13. Nd5 Bd7
14. Rad1 b5 15. Qc2 Bc6 16. Rfe1 Qb8 17. b3 Qb7 18. Bf1 Rad8 {½-½ (46)
Kantor,G (2255)-Farago,S (2269) Budapest 2011}) 13. cxb5 {[%emt 0:07:01]} axb5
{[%emt 0:00:06]} 14. Nxb5 {[%emt 0:15:24]} d5 {[%emt 0:03:54]} 15. exd5 {
[%emt 0:02:36]} Nxd5 {[%emt 0:03:00]} 16. Bh6 {[%emt 0:05:07]} Bxh6 {[%emt 0:
00:00]} 17. Qxh6 {[%emt 0:00:04]} Ndf4 $1 {[%emt 0:00:07]} 18. Be4 {[%emt 0:00:
00]} Rb8 {[%emt 0:06:53]} 19. Rad1 {[%emt 0:03:07]} Qf6 {[%emt 0:00:20]} 20.
Nc3 {[%emt 0:03:08]} Rxb2 {[%emt 0:02:32]} 21. Nd5 {[%emt 0:00:37]} Nxd5 {
[%emt 0:00:38]} 22. Bxd5 {[%emt 0:00:12]} Qf4 {[%emt 0:00:38]} 23. Qxf4 {
[%emt 0:00:42]} Nxf4 {[%emt 0:00:09]} 24. Bc4 {[%emt 0:11:40] Inhibits Ba6.}
Be6 {[%emt 0:02:24]} 25. Bxe6 {[%emt 0:00:25]} Nxe6 {[%emt 0:00:38]} 26. Rd2 {
[%emt 0:02:44]} Rxd2 {[%emt 0:00:25]} 27. Nxd2 {[%emt 0:00:03] Endgame KRN-KRN}
Ra8 {[%emt 0:00:16]} 28. Rc1 {[%emt 0:04:59]} Rxa2 {[%emt 0:00:00]} 29. Nb3 {
[%emt 0:00:05]} Nd4 {[%emt 0:04:42]} (29... Nf4 $1 $15 {might be stronger.} 30.
Rxc5 Nd3 31. Rc8+ Kg7) 30. Nxd4 {[%emt 0:00:08]} cxd4 {[%emt 0:00:05] KR-KR}
31. Rc8+ {[%emt 0:00:05]} Kg7 {[%emt 0:00:05]} 32. Rd8 {[%emt 0:00:27] [#]}
Ra1+ {[%emt 0:04:07]} (32... Ra4 $1 $17 33. Kh2 Kf6) 33. Kh2 $15 {[%emt 0:00:
03]} Rd1 {[%emt 0:00:04]} 34. Kg3 {[%emt 0:03:20]} Kf6 {[%emt 0:00:16]} 35. Kf4
{[%emt 0:00:52]} Rd2 {[%emt 0:00:48]} 36. f3 {[%emt 0:00:00]} (36. Kf3 $15)
36... g5+ $19 {[%emt 0:03:53][%cal Yg6g5,Yg5f4]} ({Stronger than} 36... Rxg2
37. Rd6+ Kg7 38. Rxd4 $17) 37. Kg3 {[%emt 0:00:38]} Ke5 {[%emt 0:02:23] [#]
Against f4+. And now ...d3 would win.} 38. Rh8 $2 {[%emt 0:00:31]} (38. Re8+
$17 Kf5 39. Re7) 38... d3 {[%emt 0:01:49]} 39. f4+ {[%emt 0:00:08]} (39. Rxh7
$142 Rxg2+ 40. Kxg2) 39... gxf4+ {[%emt 0:00:00]} 40. Kf3 {[%emt 0:00:03]} Rd1
{[%emt 0:00:16] aiming for ...Rf1+.} 41. Kf2 {[%emt 0:31:10] Inhibits Rf1+.}
Kd4 {[%emt 0:37:06]} 42. Rxh7 {[%emt 0:00:00]} Rh1 {[%emt 0:04:36] Black mates.
} 43. Rxf7 {[%emt 0:00:47]} d2 {[%emt 0:00:00]} 44. Rd7+ {[%emt 0:00:12]} Kc3 {
[%emt 0:00:07]} 45. Kf3 {[%emt 0:00:17]} d1=Q+ {[%emt 0:02:10]} 46. Rxd1 {
[%emt 0:00:03]} Rxd1 {[%emt 0:00:08]} 47. Kxf4 {[%emt 0:00:02] KR-KPP} Kd4 {
[%emt 0:00:39]} 48. h4 {[%emt 0:00:34]} Kd5 {[%emt 0:01:45]} 49. Kg5 {[%emt 0:
01:49]} Ke6 {[%emt 0:00:36]} 50. g4 {[%emt 0:00:00]} Kf7 {[%emt 0:00:11]} 51.
Kh6 {[%emt 0:00:07]} Rd4 {[%emt 0:01:02] Weighted Error Value: White=0.77/
Black=0.04 (flawless)} 0-1